[Event "Titled Tuesday Blitz June 28 Late 2022"]
[White "Kohler, Aran"]
[Black "Premnath, R."]
[WhiteFideId "1002856"]
[BlackFideId "5021928"]
[WhiteElo "2272"]
[BlackElo "2611"]
[Result "0-1"]
[Round "08"]
[TimeControl "180+1"]
[Date "2022.06.29"]
[WhiteClock "0:00:03"]
[BlackClock "0:00:24"]

1. d4 {[%clk 0:02:59]}  Nf6 {[%clk 0:03:00]} 2. Bg5 {[%clk 0:02:59]}  Ne4 {[%clk 0:03:00]} 3. h4 {[%clk 0:02:59]}  c5 {[%clk 0:02:58]} 4. d5 {[%clk 0:02:51]}  d6 {[%clk 0:02:53]} 5. Nc3 {[%clk 0:02:48]}  Qa5 {[%clk 0:02:51]} 6. Bd2 {[%clk 0:02:47]}  Nxd2 {[%clk 0:02:47]} 7. Qxd2 {[%clk 0:02:48]}  h5 {[%clk 0:02:36]} 8. e4 {[%clk 0:02:47]}  g6 {[%clk 0:02:36]} 9. Bb5+ {[%clk 0:02:46]}  Bd7 {[%clk 0:02:36]} 10. Bxd7+ {[%clk 0:02:44]}  Nxd7 {[%clk 0:02:37]} 11. Nf3 {[%clk 0:02:43]}  Bg7 {[%clk 0:02:37]} 12. O-O {[%clk 0:02:41]}  O-O {[%clk 0:02:34]} 13. a3 {[%clk 0:02:35]}  b5 {[%clk 0:02:32]} 14. Rfe1 {[%clk 0:02:29]}  Ne5 {[%clk 0:02:29]} 15. Nxe5 {[%clk 0:02:28]}  Bxe5 {[%clk 0:02:30]} 16. g3 {[%clk 0:02:26]}  Rfb8 {[%clk 0:02:27]} 17. f4 {[%clk 0:02:23]}  Bd4+ {[%clk 0:02:26]} 18. Kg2 {[%clk 0:02:23]}  b4 {[%clk 0:02:27]} 19. Nd1 {[%clk 0:01:34]}  Qb6 {[%clk 0:02:08]} 20. a4 {[%clk 0:01:26]}  c4 {[%clk 0:02:05]} 21. c3 {[%clk 0:01:17]}  bxc3 {[%clk 0:02:04]} 22. bxc3 {[%clk 0:01:18]}  Bg7 {[%clk 0:02:00]} 23. Nf2 {[%clk 0:01:15]}  Qb2 {[%clk 0:01:56]} 24. Re2 {[%clk 0:01:04]}  Qxd2 {[%clk 0:01:52]} 25. Rxd2 {[%clk 0:01:04]}  Bxc3 {[%clk 0:01:53]} 26. Rad1 {[%clk 0:01:02]}  Bxd2 {[%clk 0:01:51]} 27. Rxd2 {[%clk 0:01:03]}  Rb4 {[%clk 0:01:50]} 28. e5 {[%clk 0:01:02]}  Rxa4 {[%clk 0:01:49]} 29. exd6 {[%clk 0:01:01]}  exd6 {[%clk 0:01:50]} 30. Ne4 {[%clk 0:01:01]}  Rd8 {[%clk 0:01:46]} 31. f5 {[%clk 0:00:53]}  Kg7 {[%clk 0:01:20]} 32. f6+ {[%clk 0:00:52]}  Kf8 {[%clk 0:01:20]} 33. Rb2 {[%clk 0:00:37]}  c3 {[%clk 0:01:05]} 34. Nxc3 {[%clk 0:00:35]}  Rc4 {[%clk 0:01:04]} 35. Ne2 {[%clk 0:00:26]}  Rc7 {[%clk 0:00:55]} 36. Nd4 {[%clk 0:00:24]}  Re8 {[%clk 0:00:52]} 37. Nc6 {[%clk 0:00:22]}  Kg8 {[%clk 0:00:41]} 38. Kf3 {[%clk 0:00:22]}  Kh7 {[%clk 0:00:41]} 39. Ra2 {[%clk 0:00:20]}  Kh6 {[%clk 0:00:39]} 40. Kf4 {[%clk 0:00:19]}  Rb7 {[%clk 0:00:36]} 41. Rxa7 {[%clk 0:00:12]}  Rxa7 {[%clk 0:00:35]} 42. Nxa7 {[%clk 0:00:12]}  Re5 {[%clk 0:00:34]} 43. Nc6 {[%clk 0:00:11]}  Rxd5 {[%clk 0:00:34]} 44. Ne7 {[%clk 0:00:12]}  Re5 {[%clk 0:00:30]} 45. Ng8+ {[%clk 0:00:11]}  Kh7 {[%clk 0:00:30]} 46. Ne7 {[%clk 0:00:12]}  Re6 {[%clk 0:00:30]} 47. Kg5 {[%clk 0:00:11]}  Re3 {[%clk 0:00:27]} 48. Kf4 {[%clk 0:00:10]}  Re1 {[%clk 0:00:27]} 49. g4 {[%clk 0:00:03]}  Rf1+ {[%clk 0:00:25]} 50. Kg5 {[%clk 0:00:03]}  Rg1 {[%clk 0:00:24]} 0-1


[Site "https://www.chess.com"]

[Event "Titled Tuesday Blitz June 28 Late 2022"]
[White "Kostiukov, Alexandr"]
[Black "Toncheva, Nadya"]
[WhiteFideId "14108100"]
[BlackFideId "2924056"]
[WhiteElo "2202"]
[BlackElo "1888"]
[Result "0-1"]
[Round "08"]
[TimeControl "180+1"]
[Date "2022.06.29"]
[WhiteClock "0:00:07"]
[BlackClock "0:00:07"]

1. g3 {[%clk 0:03:00]}  d5 {[%clk 0:02:59]} 2. Bg2 {[%clk 0:03:00]}  Nf6 {[%clk 0:02:59]} 3. d3 {[%clk 0:03:00]}  Bf5 {[%clk 0:02:57]} 4. Nc3 {[%clk 0:02:59]}  e6 {[%clk 0:02:56]} 5. e4 {[%clk 0:02:59]}  Bg6 {[%clk 0:02:53]} 6. exd5 {[%clk 0:02:47]}  exd5 {[%clk 0:02:53]} 7. Nge2 {[%clk 0:02:47]}  c6 {[%clk 0:02:36]} 8. O-O {[%clk 0:02:41]}  Bd6 {[%clk 0:02:36]} 9. Nf4 {[%clk 0:02:40]}  O-O {[%clk 0:02:36]} 10. Re1 {[%clk 0:02:37]}  Nbd7 {[%clk 0:02:32]} 11. Bd2 {[%clk 0:02:36]}  Qc7 {[%clk 0:02:24]} 12. Nce2 {[%clk 0:02:33]}  Rfe8 {[%clk 0:02:20]} 13. Nxg6 {[%clk 0:02:32]}  hxg6 {[%clk 0:02:19]} 14. Nf4 {[%clk 0:02:27]}  Ne5 {[%clk 0:02:03]} 15. h3 {[%clk 0:02:22]}  Re7 {[%clk 0:02:02]} 16. d4 {[%clk 0:02:11]}  Nc4 {[%clk 0:02:00]} 17. Rxe7 {[%clk 0:02:10]}  Qxe7 {[%clk 0:01:59]} 18. b3 {[%clk 0:02:03]}  Nxd2 {[%clk 0:01:43]} 19. Qxd2 {[%clk 0:02:03]}  Re8 {[%clk 0:01:44]} 20. h4 {[%clk 0:01:53]}  Ng4 {[%clk 0:01:25]} 21. Bf3 {[%clk 0:01:44]}  Nh6 {[%clk 0:01:16]} 22. Kf1 {[%clk 0:01:38]}  Nf5 {[%clk 0:01:11]} 23. Bg4 {[%clk 0:01:31]}  Nxh4 {[%clk 0:00:59]} 24. Nd3 {[%clk 0:00:43]}  Nf5 {[%clk 0:00:52]} 25. Bxf5 {[%clk 0:00:39]}  gxf5 {[%clk 0:00:50]} 26. Re1 {[%clk 0:00:39]}  Qd8 {[%clk 0:00:50]} 27. Rxe8+ {[%clk 0:00:37]}  Qxe8 {[%clk 0:00:51]} 28. Qe2 {[%clk 0:00:37]}  Qe4 {[%clk 0:00:48]} 29. Qe3 {[%clk 0:00:28]}  Qxe3 {[%clk 0:00:37]} 30. fxe3 {[%clk 0:00:28]}  Bxg3 {[%clk 0:00:37]} 31. Nc5 {[%clk 0:00:28]}  b6 {[%clk 0:00:37]} 32. Nd3 {[%clk 0:00:24]}  Bd6 {[%clk 0:00:35]} 33. c4 {[%clk 0:00:23]}  Kf8 {[%clk 0:00:33]} 34. Ke2 {[%clk 0:00:21]}  Ke7 {[%clk 0:00:31]} 35. cxd5 {[%clk 0:00:21]}  cxd5 {[%clk 0:00:31]} 36. Kf3 {[%clk 0:00:18]}  g5 {[%clk 0:00:31]} 37. Nf2 {[%clk 0:00:16]}  g4+ {[%clk 0:00:30]} 38. Ke2 {[%clk 0:00:13]}  Kf6 {[%clk 0:00:28]} 39. Nd3 {[%clk 0:00:12]}  Kg5 {[%clk 0:00:28]} 40. Kf2 {[%clk 0:00:12]}  f4 {[%clk 0:00:22]} 41. exf4+ {[%clk 0:00:11]}  Bxf4 {[%clk 0:00:23]} 42. Nb4 {[%clk 0:00:12]}  Kf5 {[%clk 0:00:19]} 43. Nxd5 {[%clk 0:00:11]}  Ke4 {[%clk 0:00:20]} 44. Nf6+ {[%clk 0:00:10]}  Kf5 {[%clk 0:00:18]} 45. Nd5 {[%clk 0:00:10]}  Bd6 {[%clk 0:00:15]} 46. Ne3+ {[%clk 0:00:09]}  Kg5 {[%clk 0:00:15]} 47. Nc4 {[%clk 0:00:09]}  Be7 {[%clk 0:00:11]} 48. Ne5 {[%clk 0:00:06]}  f5 {[%clk 0:00:10]} 49. Nc6 {[%clk 0:00:07]}  Bf6 {[%clk 0:00:10]} 50. d5 {[%clk 0:00:06]}  f4 {[%clk 0:00:09]} 51. d6 {[%clk 0:00:06]}  g3+ {[%clk 0:00:08]} 52. Kf3 {[%clk 0:00:07]}  Kh4 {[%clk 0:00:07]} 0-1


[Site "https://www.chess.com"]

[Event "Titled Tuesday Blitz June 28 Late 2022"]
[White "Kovacevic, Radmila"]
[Black "Silvestre, Christian"]
[WhiteFideId "933171"]
[BlackFideId "30956269"]
[WhiteElo "2115"]
[BlackElo "2355"]
[Result "1-0"]
[Round "08"]
[TimeControl "180+1"]
[Date "2022.06.29"]
[WhiteClock "0:00:06"]
[BlackClock "0:01:01"]

1. e4 {[%clk 0:03:00]}  c6 {[%clk 0:02:58]} 2. d4 {[%clk 0:03:01]}  d5 {[%clk 0:02:58]} 3. exd5 {[%clk 0:03:02]}  cxd5 {[%clk 0:02:58]} 4. Nf3 {[%clk 0:03:03]}  Nc6 {[%clk 0:02:57]} 5. Bd3 {[%clk 0:03:04]}  Qc7 {[%clk 0:02:56]} 6. c3 {[%clk 0:03:04]}  Bg4 {[%clk 0:02:52]} 7. h3 {[%clk 0:03:04]}  Bh5 {[%clk 0:02:52]} 8. O-O {[%clk 0:03:02]}  e6 {[%clk 0:02:52]} 9. Re1 {[%clk 0:03:03]}  Bd6 {[%clk 0:02:52]} 10. Bg5 {[%clk 0:02:54]}  Nge7 {[%clk 0:02:51]} 11. Nbd2 {[%clk 0:02:51]}  O-O {[%clk 0:02:49]} 12. Qc2 {[%clk 0:02:49]}  Bg6 {[%clk 0:02:48]} 13. Rac1 {[%clk 0:02:43]}  Rab8 {[%clk 0:02:47]} 14. b4 {[%clk 0:02:34]}  Rfc8 {[%clk 0:02:38]} 15. Qb1 {[%clk 0:02:26]}  b5 {[%clk 0:02:34]} 16. Bxg6 {[%clk 0:02:21]}  hxg6 {[%clk 0:02:32]} 17. Nb3 {[%clk 0:02:20]}  a5 {[%clk 0:02:31]} 18. bxa5 {[%clk 0:02:10]}  Nxa5 {[%clk 0:02:30]} 19. Ne5 {[%clk 0:01:48]}  Nc4 {[%clk 0:02:27]} 20. Bxe7 {[%clk 0:01:43]}  Bxe7 {[%clk 0:02:24]} 21. Nxg6 {[%clk 0:01:39]}  Bg5 {[%clk 0:02:13]} 22. Ne5 {[%clk 0:01:04]}  Nxe5 {[%clk 0:02:09]} 23. Rxe5 {[%clk 0:01:02]}  Bxc1 {[%clk 0:02:08]} 24. Qxc1 {[%clk 0:01:03]}  Qxc3 {[%clk 0:02:06]} 25. Qf4 {[%clk 0:01:00]}  Ra8 {[%clk 0:02:02]} 26. Rg5 {[%clk 0:00:55]}  Ra7 {[%clk 0:01:42]} 27. Qf6 {[%clk 0:00:48]}  g6 {[%clk 0:01:42]} 28. Rxg6+ {[%clk 0:00:44]}  fxg6 {[%clk 0:01:42]} 29. Qxg6+ {[%clk 0:00:43]}  Rg7 {[%clk 0:01:42]} 30. Qxe6+ {[%clk 0:00:43]}  Kf8 {[%clk 0:01:42]} 31. Nc5 {[%clk 0:00:30]}  Rxc5 {[%clk 0:01:36]} 32. Qd6+ {[%clk 0:00:26]}  Re7 {[%clk 0:01:34]} 33. dxc5 {[%clk 0:00:22]}  Qe5 {[%clk 0:01:33]} 34. Qh6+ {[%clk 0:00:20]}  Ke8 {[%clk 0:01:26]} 35. Qc6+ {[%clk 0:00:19]}  Kd8 {[%clk 0:01:25]} 36. Qxb5 {[%clk 0:00:17]}  Qe1+ {[%clk 0:01:23]} 37. Kh2 {[%clk 0:00:16]}  Qe5+ {[%clk 0:01:22]} 38. g3 {[%clk 0:00:15]}  Qc7 {[%clk 0:01:20]} 39. c6 {[%clk 0:00:14]}  Re5 {[%clk 0:01:13]} 40. Qc5 {[%clk 0:00:12]}  Ke8 {[%clk 0:01:10]} 41. h4 {[%clk 0:00:11]}  Re2 {[%clk 0:01:03]} 42. Kg2 {[%clk 0:00:08]}  d4 {[%clk 0:00:59]} 43. Qh5+ {[%clk 0:00:05]}  Kd8 {[%clk 0:00:59]} 44. Qxe2 {[%clk 0:00:05]}  Qxc6+ {[%clk 0:01:00]} 45. Qf3 {[%clk 0:00:06]}  Qc3 {[%clk 0:00:59]} 46. Qd5+ {[%clk 0:00:03]}  Kc8 {[%clk 0:00:58]} 47. Qe6+ {[%clk 0:00:03]}  Kb7 {[%clk 0:00:58]} 48. Qb3+ {[%clk 0:00:03]}  Qxb3 {[%clk 0:00:57]} 49. axb3 {[%clk 0:00:03]}  Kc6 {[%clk 0:00:57]} 50. Kf3 {[%clk 0:00:04]}  Kc5 {[%clk 0:00:58]} 51. Ke4 {[%clk 0:00:03]}  Kb4 {[%clk 0:00:58]} 52. Kxd4 {[%clk 0:00:03]}  Kb5 {[%clk 0:00:58]} 53. h5 {[%clk 0:00:04]}  Kc6 {[%clk 0:00:59]} 54. h6 {[%clk 0:00:04]}  Kd7 {[%clk 0:01:00]} 55. h7 {[%clk 0:00:05]}  Ke6 {[%clk 0:01:01]} 56. h8=Q {[%clk 0:00:06]} 1-0


[Site "https://www.chess.com"]

[Event "Titled Tuesday Blitz June 28 Late 2022"]
[White "Ladopoulos, Dimitrios"]
[Black "Bortnyk, Mykola"]
[WhiteFideId "4239580"]
[BlackFideId "14120836"]
[WhiteElo "2195"]
[BlackElo "2582"]
[Result "1-0"]
[Round "08"]
[TimeControl "180+1"]
[Date "2022.06.28"]
[WhiteClock "0:00:03"]
[BlackClock "0:00:18"]

1. Nf3 {[%clk 0:02:52]}  c5 {[%clk 0:02:59]} 2. e4 {[%clk 0:02:48]}  d6 {[%clk 0:03:00]} 3. d4 {[%clk 0:02:49]}  cxd4 {[%clk 0:03:01]} 4. Nxd4 {[%clk 0:02:49]}  Nf6 {[%clk 0:03:01]} 5. Nc3 {[%clk 0:02:50]}  g6 {[%clk 0:03:02]} 6. Be3 {[%clk 0:02:47]}  Bg7 {[%clk 0:03:02]} 7. f3 {[%clk 0:02:47]}  a6 {[%clk 0:03:03]} 8. Bc4 {[%clk 0:02:45]}  b5 {[%clk 0:03:01]} 9. Bb3 {[%clk 0:02:46]}  Bb7 {[%clk 0:03:02]} 10. Qd2 {[%clk 0:02:45]}  h5 {[%clk 0:03:02]} 11. a4 {[%clk 0:02:39]}  b4 {[%clk 0:02:55]} 12. Nd5 {[%clk 0:02:28]}  Bxd5 {[%clk 0:02:49]} 13. exd5 {[%clk 0:02:29]}  a5 {[%clk 0:02:45]} 14. O-O {[%clk 0:02:18]}  Qc7 {[%clk 0:02:29]} 15. Rae1 {[%clk 0:02:09]}  O-O {[%clk 0:02:17]} 16. Kh1 {[%clk 0:01:40]}  Re8 {[%clk 0:02:11]} 17. Bg5 {[%clk 0:01:38]}  Na6 {[%clk 0:02:09]} 18. Nc6 {[%clk 0:01:31]}  Nb8 {[%clk 0:01:56]} 19. Bc4 {[%clk 0:01:08]}  Nxc6 {[%clk 0:01:54]} 20. dxc6 {[%clk 0:01:09]}  e6 {[%clk 0:01:42]} 21. Bb5 {[%clk 0:00:58]}  Nd5 {[%clk 0:01:37]} 22. Qc1 {[%clk 0:00:48]}  Rac8 {[%clk 0:01:33]} 23. Bd2 {[%clk 0:00:39]}  Qb6 {[%clk 0:01:31]} 24. c3 {[%clk 0:00:37]}  bxc3 {[%clk 0:01:28]} 25. bxc3 {[%clk 0:00:38]}  Ne7 {[%clk 0:01:26]} 26. Be3 {[%clk 0:00:37]}  Qc7 {[%clk 0:01:24]} 27. c4 {[%clk 0:00:36]}  Nxc6 {[%clk 0:01:23]} 28. Rd1 {[%clk 0:00:36]}  Red8 {[%clk 0:01:20]} 29. Bg5 {[%clk 0:00:36]}  f6 {[%clk 0:01:20]} 30. Be3 {[%clk 0:00:35]}  Ne5 {[%clk 0:01:17]} 31. c5 {[%clk 0:00:32]}  dxc5 {[%clk 0:01:17]} 32. Rxd8+ {[%clk 0:00:31]}  Qxd8 {[%clk 0:01:15]} 33. Qc2 {[%clk 0:00:29]}  c4 {[%clk 0:01:11]} 34. Rd1 {[%clk 0:00:25]}  Qc7 {[%clk 0:01:05]} 35. Bf4 {[%clk 0:00:23]}  Kh7 {[%clk 0:01:00]} 36. Re1 {[%clk 0:00:06]}  Qc5 {[%clk 0:00:47]} 37. Bxe5 {[%clk 0:00:06]}  fxe5 {[%clk 0:00:48]} 38. Re4 {[%clk 0:00:06]}  c3 {[%clk 0:00:39]} 39. Rh4 {[%clk 0:00:03]}  Qe3 {[%clk 0:00:29]} 40. Re4 {[%clk 0:00:01]}  Qd2 {[%clk 0:00:27]} 41. Re2 {[%clk 0:00:01]}  Qxc2 {[%clk 0:00:17]} 42. Rxc2 {[%clk 0:00:02]}  e4 {[%clk 0:00:17]} 43. fxe4 {[%clk 0:00:02]}  Bd4 {[%clk 0:00:17]} 44. g3 {[%clk 0:00:01]}  Kg7 {[%clk 0:00:18]} 45. Bd7 {[%clk 0:00:01]}  Kf6 {[%clk 0:00:19]} 46. Bxc8 {[%clk 0:00:01]}  Ke5 {[%clk 0:00:18]} 47. Kg2 {[%clk 0:00:02]}  Kxe4 {[%clk 0:00:18]} 48. Ba6 {[%clk 0:00:03]}  Ke3 {[%clk 0:00:18]} 49. Re2# {[%clk 0:00:03]} 1-0


[Site "https://www.chess.com"]

[Event "Titled Tuesday Blitz June 28 Late 2022"]
[White "Maksimovic, Bojan"]
[Black "Papp, Levente"]
[WhiteFideId "14408120"]
[BlackFideId "751243"]
[WhiteElo "2453"]
[BlackElo "2308"]
[Result "1-0"]
[Round "08"]
[TimeControl "180+1"]
[Date "2022.06.28"]
[WhiteClock "0:00:11"]
[BlackClock "0:00:01"]

1. e4 {[%clk 0:02:50]}  e6 {[%clk 0:03:00]} 2. d4 {[%clk 0:02:49]}  d5 {[%clk 0:03:00]} 3. Nc3 {[%clk 0:02:50]}  Bb4 {[%clk 0:03:00]} 4. exd5 {[%clk 0:02:49]}  exd5 {[%clk 0:03:00]} 5. Bd3 {[%clk 0:02:50]}  Nc6 {[%clk 0:03:00]} 6. Ne2 {[%clk 0:02:50]}  Nge7 {[%clk 0:03:00]} 7. O-O {[%clk 0:02:50]}  O-O {[%clk 0:03:00]} 8. a3 {[%clk 0:02:51]}  Bxc3 {[%clk 0:03:00]} 9. Nxc3 {[%clk 0:02:50]}  Bf5 {[%clk 0:02:54]} 10. Be2 {[%clk 0:02:50]}  Qd7 {[%clk 0:02:46]} 11. Bf4 {[%clk 0:02:49]}  Rfe8 {[%clk 0:02:47]} 12. Qd2 {[%clk 0:02:50]}  Nd8 {[%clk 0:02:31]} 13. Rfe1 {[%clk 0:02:43]}  Ne6 {[%clk 0:02:30]} 14. Bg3 {[%clk 0:02:44]}  Nc6 {[%clk 0:02:23]} 15. Bb5 {[%clk 0:02:34]}  Nexd4 {[%clk 0:02:08]} 16. Qxd4 {[%clk 0:01:50]}  Nxd4 {[%clk 0:02:08]} 17. Bxd7 {[%clk 0:01:51]}  Bxd7 {[%clk 0:02:04]} 18. Red1 {[%clk 0:01:51]}  Ne2+ {[%clk 0:01:32]} 19. Nxe2 {[%clk 0:01:50]}  Rxe2 {[%clk 0:01:33]} 20. Rxd5 {[%clk 0:01:51]}  Be6 {[%clk 0:01:29]} 21. Rc5 {[%clk 0:01:33]}  c6 {[%clk 0:01:13]} 22. Rd1 {[%clk 0:01:33]}  Bd5 {[%clk 0:00:55]} 23. c4 {[%clk 0:01:29]}  b6 {[%clk 0:00:49]} 24. cxd5 {[%clk 0:01:15]}  bxc5 {[%clk 0:00:49]} 25. dxc6 {[%clk 0:01:04]}  f6 {[%clk 0:00:24]} 26. c7 {[%clk 0:00:56]}  Kf7 {[%clk 0:00:22]} 27. Kf1 {[%clk 0:00:53]}  Ree8 {[%clk 0:00:12]} 28. Rd5 {[%clk 0:00:51]}  c4 {[%clk 0:00:09]} 29. Rc5 {[%clk 0:00:51]}  Rac8 {[%clk 0:00:08]} 30. Rxc4 {[%clk 0:00:51]}  Re6 {[%clk 0:00:08]} 31. Ra4 {[%clk 0:00:50]}  a6 {[%clk 0:00:08]} 32. Rd4 {[%clk 0:00:40]}  g5 {[%clk 0:00:03]} 33. h4 {[%clk 0:00:38]}  Kg6 {[%clk 0:00:02]} 34. b4 {[%clk 0:00:37]}  h5 {[%clk 0:00:02]} 35. a4 {[%clk 0:00:36]}  Rc6 {[%clk 0:00:02]} 36. Ke2 {[%clk 0:00:34]}  R8xc7 {[%clk 0:00:01]} 37. Bxc7 {[%clk 0:00:34]}  Rxc7 {[%clk 0:00:02]} 38. hxg5 {[%clk 0:00:34]}  Kxg5 {[%clk 0:00:02]} 39. Kd3 {[%clk 0:00:29]}  Rc1 {[%clk 0:00:02]} 40. Rd5+ {[%clk 0:00:24]}  f5 {[%clk 0:00:02]} 41. Ra5 {[%clk 0:00:25]}  Rg1 {[%clk 0:00:02]} 42. g3 {[%clk 0:00:23]}  Rf1 {[%clk 0:00:02]} 43. Rxa6 {[%clk 0:00:15]}  Rb1 {[%clk 0:00:03]} 44. b5 {[%clk 0:00:15]}  Kg4 {[%clk 0:00:02]} 45. Rg6+ {[%clk 0:00:10]}  Kf3 {[%clk 0:00:03]} 46. Rg5 {[%clk 0:00:11]}  Kxf2 {[%clk 0:00:01]} 47. Rxf5+ {[%clk 0:00:11]} 1-0


[Site "https://www.chess.com"]

[Event "Titled Tuesday Blitz June 28 Late 2022"]
[White "Martinez, Shawn"]
[Black "Omariev, Maksim"]
[WhiteFideId "2039770"]
[BlackFideId "4193423"]
[WhiteElo "2174"]
[BlackElo "2443"]
[Result "0-1"]
[Round "08"]
[TimeControl "180+1"]
[Date "2022.06.29"]
[WhiteClock "0:01:49"]
[BlackClock "0:02:08"]

1. e4 {[%clk 0:03:00]}  c5 {[%clk 0:03:00]} 2. Nc3 {[%clk 0:02:59]}  d6 {[%clk 0:02:59]} 3. Bb5+ {[%clk 0:02:56]}  Nd7 {[%clk 0:02:59]} 4. f4 {[%clk 0:02:56]}  a6 {[%clk 0:02:59]} 5. Bxd7+ {[%clk 0:02:55]}  Bxd7 {[%clk 0:03:00]} 6. Nf3 {[%clk 0:02:55]}  g6 {[%clk 0:02:59]} 7. O-O {[%clk 0:02:55]}  Bg7 {[%clk 0:03:00]} 8. d3 {[%clk 0:02:55]}  Bc6 {[%clk 0:02:56]} 9. f5 {[%clk 0:02:48]}  Nf6 {[%clk 0:02:56]} 10. Qe1 {[%clk 0:02:43]}  gxf5 {[%clk 0:02:53]} 11. Nh4 {[%clk 0:02:28]}  fxe4 {[%clk 0:02:41]} 12. Nf5 {[%clk 0:02:23]}  Rg8 {[%clk 0:02:42]} 13. Nxg7+ {[%clk 0:02:03]}  Rxg7 {[%clk 0:02:43]} 14. Rxf6 {[%clk 0:02:02]}  exf6 {[%clk 0:02:43]} 15. Nxe4 {[%clk 0:01:57]}  Bxe4 {[%clk 0:02:19]} 16. Qxe4+ {[%clk 0:01:57]}  Qe7 {[%clk 0:02:19]} 17. Qh4 {[%clk 0:01:57]}  O-O-O {[%clk 0:02:17]} 18. Bh6 {[%clk 0:01:50]}  Rg6 {[%clk 0:02:14]} 19. Re1 {[%clk 0:01:49]}  Rxh6 {[%clk 0:02:08]} 0-1


[Site "https://www.chess.com"]

[Event "Titled Tuesday Blitz June 28 Late 2022"]
[White "Meunier-Pion, Jean"]
[Black "Domingo Nunez, Ruben"]
[WhiteFideId "20685327"]
[BlackFideId "22245570"]
[WhiteElo "2124"]
[BlackElo "2376"]
[Result "1-0"]
[Round "08"]
[TimeControl "180+1"]
[Date "2022.06.29"]
[WhiteClock "0:00:05"]
[BlackClock "0:00:02"]

1. e4 {[%clk 0:03:00]}  Nc6 {[%clk 0:02:59]} 2. d4 {[%clk 0:03:00]}  d5 {[%clk 0:02:58]} 3. e5 {[%clk 0:03:01]}  Bf5 {[%clk 0:02:59]} 4. c3 {[%clk 0:02:51]}  f6 {[%clk 0:02:58]} 5. f4 {[%clk 0:02:51]}  Qd7 {[%clk 0:02:58]} 6. Nf3 {[%clk 0:02:48]}  Nh6 {[%clk 0:02:51]} 7. Bd3 {[%clk 0:02:37]}  Bxd3 {[%clk 0:02:50]} 8. Qxd3 {[%clk 0:02:38]}  Qf5 {[%clk 0:02:51]} 9. Qxf5 {[%clk 0:02:31]}  Nxf5 {[%clk 0:02:52]} 10. g4 {[%clk 0:02:32]}  Nh6 {[%clk 0:02:52]} 11. Rg1 {[%clk 0:02:22]}  e6 {[%clk 0:02:49]} 12. Be3 {[%clk 0:02:11]}  Nf7 {[%clk 0:02:40]} 13. Nbd2 {[%clk 0:02:09]}  h5 {[%clk 0:02:34]} 14. g5 {[%clk 0:02:02]}  fxg5 {[%clk 0:02:34]} 15. fxg5 {[%clk 0:02:02]}  g6 {[%clk 0:02:34]} 16. Ke2 {[%clk 0:01:49]}  Ne7 {[%clk 0:02:27]} 17. a4 {[%clk 0:01:44]}  Nf5 {[%clk 0:02:22]} 18. a5 {[%clk 0:01:44]}  Be7 {[%clk 0:02:22]} 19. a6 {[%clk 0:01:29]}  b6 {[%clk 0:02:20]} 20. Nb3 {[%clk 0:01:21]}  Kd7 {[%clk 0:02:17]} 21. Nc1 {[%clk 0:01:21]}  c5 {[%clk 0:01:47]} 22. Nd3 {[%clk 0:01:17]}  c4 {[%clk 0:01:44]} 23. Nf4 {[%clk 0:01:15]}  Rhg8 {[%clk 0:01:44]} 24. b3 {[%clk 0:01:01]}  cxb3 {[%clk 0:01:24]} 25. c4 {[%clk 0:01:01]}  Nxe3 {[%clk 0:01:03]} 26. Kxe3 {[%clk 0:00:59]}  dxc4 {[%clk 0:01:04]} 27. d5 {[%clk 0:00:59]}  Bc5+ {[%clk 0:01:04]} 28. Ke4 {[%clk 0:00:57]}  exd5+ {[%clk 0:01:03]} 29. Kxd5 {[%clk 0:00:56]}  Bxg1 {[%clk 0:00:49]} 30. e6+ {[%clk 0:00:52]}  Ke7 {[%clk 0:00:47]} 31. exf7 {[%clk 0:00:52]}  Rgd8+ {[%clk 0:00:44]} 32. Kxc4 {[%clk 0:00:50]}  Rac8+ {[%clk 0:00:20]} 33. Kxb3 {[%clk 0:00:50]}  Be3 {[%clk 0:00:16]} 34. Re1 {[%clk 0:00:41]}  Kxf7 {[%clk 0:00:14]} 35. Rxe3 {[%clk 0:00:41]}  Re8 {[%clk 0:00:08]} 36. Rd3 {[%clk 0:00:35]}  Rc5 {[%clk 0:00:06]} 37. Rd7+ {[%clk 0:00:20]}  Re7 {[%clk 0:00:07]} 38. Rb7 {[%clk 0:00:21]}  Rf5 {[%clk 0:00:06]} 39. Nd4 {[%clk 0:00:09]}  Rxf4 {[%clk 0:00:03]} 40. Nc6 {[%clk 0:00:06]}  Re4 {[%clk 0:00:03]} 41. Nxa7 {[%clk 0:00:04]}  Ke6 {[%clk 0:00:02]} 42. Nc6 {[%clk 0:00:04]}  Rxb7 {[%clk 0:00:01]} 43. axb7 {[%clk 0:00:04]}  Kd6 {[%clk 0:00:01]} 44. b8=Q+ {[%clk 0:00:04]}  Kxc6 {[%clk 0:00:02]} 45. Qa8+ {[%clk 0:00:05]} 1-0


[Site "https://www.chess.com"]

[Event "Titled Tuesday Blitz June 28 Late 2022"]
[White "Mortazavi, Ali"]
[Black "Yaksin, Oleg"]
[WhiteFideId "401323"]
[BlackFideId "24105880"]
[WhiteElo "2339"]
[BlackElo "2256"]
[Result "1-0"]
[Round "08"]
[TimeControl "180+1"]
[Date "2022.06.28"]
[WhiteClock "0:00:33"]
[BlackClock "0:00:02"]

1. Nf3 {[%clk 0:02:59]}  Nf6 {[%clk 0:02:55]} 2. g3 {[%clk 0:03:00]}  e6 {[%clk 0:02:55]} 3. Bg2 {[%clk 0:03:01]}  d5 {[%clk 0:02:55]} 4. O-O {[%clk 0:03:01]}  Be7 {[%clk 0:02:55]} 5. d3 {[%clk 0:03:02]}  O-O {[%clk 0:02:56]} 6. Nbd2 {[%clk 0:03:03]}  b6 {[%clk 0:02:52]} 7. e4 {[%clk 0:03:04]}  dxe4 {[%clk 0:02:47]} 8. dxe4 {[%clk 0:03:04]}  Bb7 {[%clk 0:02:47]} 9. e5 {[%clk 0:03:02]}  Nfd7 {[%clk 0:02:38]} 10. Re1 {[%clk 0:03:02]}  Qc8 {[%clk 0:02:35]} 11. c3 {[%clk 0:02:59]}  Rd8 {[%clk 0:02:29]} 12. Qe2 {[%clk 0:02:59]}  Nf8 {[%clk 0:02:26]} 13. h4 {[%clk 0:02:56]}  a5 {[%clk 0:02:21]} 14. h5 {[%clk 0:02:50]}  h6 {[%clk 0:02:19]} 15. Nc4 {[%clk 0:02:26]}  Na6 {[%clk 0:02:17]} 16. Nd4 {[%clk 0:02:10]}  Bxg2 {[%clk 0:02:10]} 17. Kxg2 {[%clk 0:02:10]}  Qb7+ {[%clk 0:02:00]} 18. Qf3 {[%clk 0:02:10]}  Qxf3+ {[%clk 0:01:56]} 19. Kxf3 {[%clk 0:02:11]}  Nc5 {[%clk 0:01:45]} 20. Nc6 {[%clk 0:02:09]}  Rd7 {[%clk 0:01:26]} 21. Be3 {[%clk 0:01:59]}  Nd3 {[%clk 0:00:54]} 22. Red1 {[%clk 0:01:59]}  Bg5 {[%clk 0:00:52]} 23. Ke2 {[%clk 0:01:29]}  Bxe3 {[%clk 0:00:47]} 24. Kxe3 {[%clk 0:01:21]}  Nc5 {[%clk 0:00:39]} 25. f4 {[%clk 0:01:14]}  a4 {[%clk 0:00:34]} 26. Rxd7 {[%clk 0:01:06]}  Nfxd7 {[%clk 0:00:34]} 27. Rd1 {[%clk 0:01:07]}  b5 {[%clk 0:00:32]} 28. Na3 {[%clk 0:01:02]}  Ra6 {[%clk 0:00:31]} 29. Nd4 {[%clk 0:00:49]}  c6 {[%clk 0:00:28]} 30. Ndc2 {[%clk 0:00:49]}  Kf8 {[%clk 0:00:26]} 31. Nb4 {[%clk 0:00:49]}  Rb6 {[%clk 0:00:25]} 32. Rd6 {[%clk 0:00:48]}  Nb8 {[%clk 0:00:18]} 33. Nac2 {[%clk 0:00:48]}  Nb7 {[%clk 0:00:14]} 34. Rd1 {[%clk 0:00:47]}  c5 {[%clk 0:00:12]} 35. Nd3 {[%clk 0:00:47]}  Ke7 {[%clk 0:00:12]} 36. Nf2 {[%clk 0:00:47]}  c4 {[%clk 0:00:09]} 37. Ne4 {[%clk 0:00:45]}  Na6 {[%clk 0:00:09]} 38. g4 {[%clk 0:00:37]}  Nac5 {[%clk 0:00:09]} 39. Nb4 {[%clk 0:00:34]}  Nxe4 {[%clk 0:00:08]} 40. Kxe4 {[%clk 0:00:35]}  Nc5+ {[%clk 0:00:08]} 41. Ke3 {[%clk 0:00:35]}  Nb7 {[%clk 0:00:08]} 42. a3 {[%clk 0:00:35]}  Nc5 {[%clk 0:00:07]} 43. Rg1 {[%clk 0:00:33]}  f6 {[%clk 0:00:07]} 44. g5 {[%clk 0:00:31]}  hxg5 {[%clk 0:00:07]} 45. fxg5 {[%clk 0:00:31]}  fxe5 {[%clk 0:00:03]} 46. h6 {[%clk 0:00:32]}  gxh6 {[%clk 0:00:03]} 47. gxh6 {[%clk 0:00:32]}  Kf6 {[%clk 0:00:02]} 48. h7 {[%clk 0:00:33]} 1-0


[Site "https://www.chess.com"]